bitfinex/quotes_ETHUSD_20250107
["timestamp","ask_amount","ask_price","bid_price","bid_amount"]
[1736276867222,2.91595,3429.5,3428.5,0.02916376]
[1736276867223,0.05476843,3429.0,3428.6,0.0075]
[1736276867524,2.91631,3429.0,3428.6,0.0075]
[1736276867725,0.05476843,3428.9,3428.4,0.0075]
[1736276868026,2.91623,3429.1,3428.4,0.40243047]
[1736276868329,0.0075,3428.7,3428.4,0.40243047]
[1736276868931,0.05476843,3428.6,3428.4,0.40243047]
[1736276869139,2.91623,3429.1,3428.4,0.40243047]
[1736276869340,0.06226843,3428.5,3428.4,0.40243047]
[1736276869503,0.0075,3428.5,3428.4,0.40243047]
[1736276869709,0.06226843,3428.5,3428.4,0.40243047]
[1736276870640,0.0075,3428.4,3427.6,2.91742]
[1736276870842,0.0075,3428.4,3427.7,0.991]
[1736276871141,1.0616,3429.1,3427.8,0.03666889]
[1736276871303,2.91641,3428.9,3427.8,0.03666889]
[1736276871503,0.05443374,3429.0,3428.2,2.9169]
[1736276871804,1.0616,3429.1,3428.3,3.23773359]
[1736276871805,0.0075,3429.1,3428.3,3.23773359]
[1736276872030,0.05443374,3428.9,3428.3,3.23773359]
[1736276872231,0.0075,3429.1,3428.6,2.91663]
[1736276872434,1.0616,3429.4,3428.3,0.32085359]
[1736276872435,1.0616,3429.4,3428.8,0.0075]
[1736276872741,0.06193374,3429.3,3428.4,3.90777]
[1736276873040,0.06193374,3429.3,3428.6,0.0075]
[1736276874347,0.0075,3429.0,3428.3,0.29169]
[1736276874546,2.91657,3428.7,3428.0,0.991]
[1736276874847,0.0075,3428.6,3428.0,0.991]
[1736276875045,0.0075,3428.6,3428.1,0.0075]
[1736276875446,0.2405,3428.8,3427.0,0.0075]
[1736276875604,0.0075,3427.9,3427.1,1.32698315]
[1736276876137,0.0075,3427.7,3427.1,4.24489315]
[1736276876446,0.0075,3427.7,3427.1,1.32698315]
[1736276876656,0.0075,3427.7,3427.1,0.991]
[1736276876857,0.0075,3427.9,3427.1,0.991]
[1736276877013,0.0075,3427.5,3427.1,0.991]
[1736276877218,0.0075,3427.5,3427.2,0.0075]
[1736276877420,0.0075,3427.3,3427.1,0.991]
[1736276877619,0.0075,3427.3,3426.7,1.0471]
[1736276877819,0.0075,3427.3,3426.7,1.48779315]
[1736276878045,0.0075,3427.4,3426.7,1.48779315]
[1736276878246,0.0075,3427.1,3426.7,1.48779315]
[1736276878524,0.0075,3426.9,3426.8,0.0075]
[1736276878726,0.0075,3426.9,3426.7,1.48779315]
[1736276879049,0.0075,3426.9,3425.7,2.9191]
[1736276879050,0.0075,3426.8,3426.4,1.0226]
[1736276879366,0.06193374,3426.7,3425.7,2.9191]
[1736276879532,2.92578,3426.7,3425.8,0.02918236]
[1736276879859,0.05443374,3426.6,3425.9,2.9189]
[1736276880033,0.05443374,3426.6,3425.6,1.0264]
[1736276880034,0.05443374,3426.6,3426.1,1.0264]
[1736276880396,1.0332,3427.3,3426.4,2.91851]
[1736276880522,0.0075,3427.2,3426.5,0.0075]
[1736276880718,0.06193374,3427.2,3426.5,2.92589]
[1736276880925,0.06193374,3427.2,3427.0,0.0075]
[1736276881139,0.233,3428.0,3427.0,2.95466559]
[1736276881344,0.233,3428.0,3427.0,0.0075]
[1736276881345,0.05332654,3427.1,3427.0,0.0075]
[1736276881556,0.0075,3427.8,3427.0,35.0075]
[1736276881760,0.0075,3427.8,3427.2,0.0075]
[1736276881964,0.0075,3427.8,3427.2,0.03667434]
[1736276882259,0.0075,3427.9,3427.2,0.03667434]
[1736276882466,2.92474,3427.9,3427.2,0.0075]
[1736276882822,2.92474,3427.9,3427.2,0.03667434]
[1736276883018,2.92474,3427.9,3427.2,2.89786374]
[1736276883722,2.1855902,3428.6,3427.4,0.0075]
[1736276883922,5.1023002,3428.6,3427.7,0.0075]
[1736276884163,0.0075,3428.4,3427.7,0.0075]
[1736276884671,0.0075,3428.4,3427.5,0.0075]
[1736276884852,0.0075,3428.4,3427.7,0.0075]
[1736276885169,1.2027902,3428.7,3427.7,0.03666932]
[1736276885396,1.2027902,3428.7,3427.9,0.0075]
[1736276885689,4.72060531,3428.9,3427.9,2.95382634]
[1736276885690,0.0075,3428.6,3427.9,2.95382634]
[1736276885829,0.0075,3428.6,3428.1,0.0075]
[1736276886271,0.0075,3428.8,3428.1,0.0075]
[1736276886745,0.0075,3428.8,3428.1,0.03666634]
[1736276887694,0.0075,3428.5,3428.0,0.39509263]
[1736276887872,0.0075,3428.1,3427.5,0.67317294]
[1736276888049,0.0075,3428.4,3427.6,0.46702729]
[1736276888370,2.91692,3428.3,3427.7,0.0075]
[1736276888744,0.0075,3428.2,3427.7,0.0075]
[1736276888939,0.0075,3428.2,3427.4,0.9971]
[1736276889147,0.0075,3428.2,3427.5,0.0075]
[1736276889339,0.0075,3428.2,3427.6,0.392226]
[1736276889768,0.0075,3428.2,3427.7,0.0075]
[1736276890141,0.0075,3428.2,3427.5,0.0075]
[1736276890980,2.9166,3428.7,3427.5,0.0075]
[1736276891341,0.0075,3428.6,3427.5,0.0075]
[1736276891694,0.0075,3428.6,3427.5,0.399727]
[1736276891877,2.9166,3428.7,3427.5,0.399727]
[1736276891878,0.0075,3428.3,3427.5,0.399727]
[1736276892174,0.0075,3428.1,3427.5,0.399727]
[1736276892367,0.0075,3428.1,3427.5,0.0075]
[1736276892888,0.0075,3428.3,3427.5,0.0075]
[1736276893087,3.84978,3428.8,3427.9,0.0075]
[1736276893381,2.91631,3429.0,3428.1,0.0075]
[1736276893557,2.91631,3429.0,3428.1,0.03666651]
[1736276893738,2.97724313,3428.9,3428.1,0.03666651]
[1736276893940,2.97724313,3428.9,3428.1,0.43435116]
[1736276894644,2.97724313,3428.9,3428.1,0.03666651]
[1736276897248,0.05331313,3428.9,3428.3,0.015]
[1736276897454,0.05331313,3428.9,3428.8,2.92397]
[1736276897754,1.2027902,3429.6,3428.8,2.92397]
[1736276897755,0.0075,3429.5,3428.9,2.92383]
[1736276897882,0.0075,3429.5,3429.1,0.0075]
[1736276898083,0.0075,3429.5,3429.1,2.92365]
[1736276898485,0.0075,3429.5,3428.8,0.9821]
[1736276898937,0.0075,3429.5,3428.9,0.02915677]
[1736276899304,0.0075,3429.5,3428.9,2.94551677]
[1736276899504,0.0075,3429.6,3429.0,0.39276168]
[1736276899807,0.0075,3429.6,3429.2,0.0075]
[1736276900251,2.91547,3430.0,3429.2,0.0075]
[1736276900957,0.0075,3429.9,3429.2,0.0075]
[1736276901160,2.91526,3430.3,3429.4,0.0075]
[1736276903155,2.91528,3430.2,3429.4,0.0075]
[1736276903359,2.91547,3430.0,3429.3,0.9379]
[1736276903521,2.91552,3430.0,3429.3,0.9379]
[1736276903926,2.91554,3429.9,3429.3,0.9379]
[1736276904411,2.91554,3429.9,3428.9,2.91638]
[1736276904412,0.0075,3429.6,3428.9,0.9633]
[1736276904627,0.0075,3429.6,3428.9,1.351281]
[1736276905006,0.9428,3430.4,3429.0,0.0291581]
[1736276905007,2.91562,3429.9,3429.0,0.0291581]
[1736276906033,0.0075,3429.7,3428.9,1.351281]
[1736276906954,5.1455902,3430.4,3429.0,0.02915808]
[1736276907162,5.1455902,3430.4,3429.4,0.993]
[1736276907163,2.91523,3430.3,3429.4,0.993]
[1736276907545,2.91557,3429.9,3429.4,0.993]
[1736276907711,2.91519,3430.3,3429.4,0.993]
[1736276907909,0.0075,3430.3,3429.4,0.993]
[1736276908147,2.91548,3430.0,3429.4,0.993]
[1736276908353,6.85794,3430.4,3429.4,0.993]
[1736276908552,0.0075,3430.3,3429.4,0.993]
[1736276908845,2.91541,3430.1,3429.2,0.0075]
[1736276909205,6.85794,3430.4,3429.1,3.92688]
[1736276909206,0.0075,3430.0,3429.1,1.0107]
[1736276909408,2.91571,3429.7,3428.7,1.0107]
[1736276909639,0.0075,3429.1,3428.7,1.0107]
[1736276909868,2.91621,3429.2,3428.2,2.91695]
[1736276909869,0.9343,3429.2,3428.2,0.9334]
[1736276910010,2.91648,3428.8,3428.2,0.9334]
[1736276910839,0.0075,3428.6,3428.2,0.9334]
[1736276911237,2.91648,3428.8,3428.2,0.9334]
[1736276911441,0.0075,3428.4,3428.2,0.9334]
[1736276911651,3.85048,3429.2,3428.3,0.0075]
[1736276911652,2.91631,3429.0,3428.3,0.0075]
[1736276911853,3.9343,3429.2,3428.2,0.9334]
[1736276912015,2.9164,3428.9,3428.2,0.9334]
[1736276912555,2.9164,3428.9,3428.3,0.0075]
[1736276913116,0.0075,3429.1,3428.3,0.0075]
[1736276913314,2.91641,3428.9,3428.3,0.0075]
[1736276914260,2.91649,3428.8,3428.3,0.0075]
[1736276914436,6.85047,3429.2,3427.8,2.9173]
[1736276914437,3.9343,3429.2,3427.8,1.011]
[1736276914676,0.0075,3428.4,3427.8,1.011]
[1736276914957,0.0075,3428.4,3427.9,0.0075]
[1736276916019,0.0075,3428.4,3427.8,1.011]
[1736276916420,0.0075,3428.6,3427.9,0.02916834]
[1736276916617,2.91635,3429.0,3427.5,2.91756]
[1736276916861,1.2027902,3429.3,3428.3,1.011]
[1736276917349,2.91665,3428.6,3428.3,1.011]
[1736276917515,2.91665,3428.6,3427.9,1.011]
[1736276917721,2.92403,3428.8,3428.1,0.0075]
[1736276918358,2.91639,3428.9,3428.1,0.0075]
[1736276918526,2.91639,3428.9,3427.9,3.92817]
[1736276918853,2.92375,3429.1,3428.3,0.0075]
[1736276919030,2.92375,3429.1,3428.3,0.03666536]
[1736276919433,0.0075,3428.9,3428.3,0.03666536]
[1736276920525,2.91616,3429.2,3428.4,0.9818]
[1736276920735,0.0075,3429.3,3429.1,0.0075]
[1736276920933,2.40558041,3429.8,3429.1,0.0075]
[1736276920934,1.2027902,3429.6,3429.1,3.34341442]
[1736276921169,1.2027902,3429.6,3429.1,3.314256]
[1736276921628,0.0075,3429.5,3429.3,1.0072]
[1736276921953,0.0075,3429.5,3429.4,0.0075]
[1736276922289,0.0075,3429.5,3429.4,2.952617]
[1736276922431,0.0075,3429.5,3429.4,3.6792673]
[1736276922632,3.00697551,3430.1,3429.4,3.6792673]
[1736276922633,0.0075,3429.7,3429.4,0.7633073]
[1736276922833,0.0075,3429.7,3429.6,2.92325]
[1736276924232,2.91496,3430.6,3429.7,0.0075]
[1736276924444,0.0075,3430.5,3429.7,0.0075]
[1736276924685,0.06067904,3430.5,3429.7,0.0075]
[1736276924887,2.97570904,3430.5,3429.7,0.0075]
[1736276927312,2.97570904,3430.5,3429.7,0.37249003]
[1736276928169,0.05317904,3430.5,3429.9,0.0075]
[1736276928375,3.84556,3430.7,3429.9,0.0075]
[1736276928678,0.0075,3430.3,3429.8,0.0075]
[1736276928884,4.1173002,3431.2,3430.0,0.0075]
[1736276929080,0.0075,3430.1,3430.0,2.95209755]
[1736276929340,4.1173002,3431.2,3430.0,1.39450746]
[1736276929463,2.91424,3431.5,3430.5,0.0075]
[1736276929766,2.91432,3431.4,3430.7,0.0075]
[1736276930176,0.0075,3431.5,3430.7,0.03664618]
[1736276930422,4.080675,3431.7,3430.9,0.0075]
[1736276930423,1.166585,3431.7,3430.9,0.0075]
[1736276930720,0.0075,3431.6,3430.9,2.95132117]
[1736276930897,0.0075,3431.6,3431.1,0.0075]
[1736276931100,0.0075,3431.6,3431.3,0.0075]
[1736276931298,0.1689028,3431.8,3431.5,0.0075]
[1736276931505,0.0075,3431.7,3431.6,0.0075]
[1736276932165,0.1689028,3431.8,3431.3,0.0075]
[1736276932369,0.1689028,3431.8,3431.5,0.0075]
[1736276933704,3.0828328,3431.8,3430.8,0.9936]
[1736276933915,0.1689028,3431.8,3431.0,0.9936]
[1736276934103,0.1689028,3431.8,3431.1,0.02914017]
[1736276934422,0.1689028,3431.8,3431.0,0.9936]
[1736276934598,3.0828528,3431.8,3431.0,0.9936]
[1736276935675,3.0828528,3431.8,3431.1,0.0075]
[1736276936010,3.0828528,3431.8,3431.0,0.9936]
[1736276936011,0.1689028,3431.8,3431.0,0.9936]
[1736276936169,2.91416,3431.6,3431.0,0.9936]
[1736276936582,0.1689028,3431.8,3431.1,0.02914314]
[1736276938338,0.1689028,3431.8,3431.3,0.0075]
[1736276938616,0.1689028,3431.8,3431.3,0.03664018]
[1736276938808,0.05582754,3431.7,3431.3,0.03664018]
[1736276939015,0.1689028,3431.8,3431.3,0.03664018]
[1736276939217,0.1689028,3431.8,3431.3,2.95094018]
[1736276939218,0.05582754,3431.6,3431.3,2.95094018]
[1736276939431,0.1689028,3431.8,3431.5,0.0075]
[1736276939916,0.05582754,3431.7,3431.6,2.92159]
[1736276940225,0.1764028,3431.8,3431.7,0.0075]
[1736276940721,0.1689028,3431.8,3431.5,3.0]
[1736276941084,0.1689028,3431.8,3431.6,0.0075]
[1736276941730,0.1689028,3431.8,3431.6,2.95065536]
[1736276942014,0.1764028,3431.8,3431.7,0.39052554]
[1736276942726,0.22570571,3431.8,3430.6,0.9744]
[1736276943017,0.0075,3431.2,3430.6,0.9744]
[1736276943179,2.91451,3431.1,3430.1,4.0217]
[1736276943385,0.05680291,3431.1,3430.6,2.91486]
[1736276943586,0.1689028,3431.8,3430.8,1.0217]
[1736276943807,0.1689028,3431.8,3431.4,0.0075]
[1736276944005,0.1689028,3431.8,3431.4,3.24304888]
[1736276944333,0.06430291,3431.7,3431.4,0.32881888]
[1736276944533,0.06430291,3431.7,3431.4,0.03663788]
[1736276944747,0.0075,3431.7,3431.4,0.03663788]
[1736276945393,0.0075,3431.5,3431.1,0.0075]
[1736276945582,0.0075,3431.5,3431.0,3.93622]
[1736276945780,0.0075,3431.3,3431.0,1.0217]
[1736276946018,0.05680291,3431.4,3431.0,1.0217]
[1736276946222,3.0829028,3431.8,3431.0,1.0217]
[1736276946419,0.05680291,3431.3,3431.0,1.0217]
[1736276946721,0.05680291,3431.3,3430.6,2.91491]
[1736276946722,2.91411,3431.6,3430.7,0.9396]
[1736276947026,0.0075,3431.1,3430.7,0.9321]
[1736276947186,2.91434,3431.4,3430.8,0.02914364]
[1736276947518,2.91434,3431.4,3430.9,0.0075]
[1736276947519,0.0075,3431.0,3430.9,0.0075]
[1736276948136,0.05680291,3431.0,3430.1,2.91533]
[1736276948312,2.92218,3430.9,3429.8,2.91557]
[1736276948610,2.97148291,3430.9,3429.9,3.84763]
[1736276948809,0.05680291,3430.9,3430.0,0.384763]
[1736276949127,0.963,3431.3,3429.9,0.9321]
[1736276949128,2.91486,3430.7,3429.9,0.9321]
[1736276949796,0.05680291,3430.6,3429.9,0.9321]
[1736276949996,0.05680291,3430.6,3430.0,0.0075]
[1736276950215,0.05680291,3430.6,3430.0,0.03664976]
[1736276950523,2.91479,3430.8,3430.0,0.03664976]
[1736276950721,2.91479,3430.8,3430.0,0.42508374]
[1736276951026,2.91501,3430.6,3430.0,0.0075]
[1736276951520,3.963,3431.3,3430.0,0.0075]
[1736276951723,0.05680291,3430.5,3430.0,0.0075]
[1736276951928,2.91477,3430.8,3430.0,0.03664978]
[1736276952130,2.91477,3430.8,3430.0,0.69594398]
[1736276952432,3.963,3431.3,3430.0,0.69594398]
[1736276952636,2.91513,3430.4,3429.5,1.016]
[1736276952931,0.05680291,3430.3,3429.7,0.0075]
[1736276953131,2.91513,3430.4,3429.7,0.0075]
[1736276953298,2.91513,3430.4,3429.7,0.03665225]
[1736276953500,2.91513,3430.4,3429.7,0.0075]
[1736276953725,2.9152,3430.3,3429.6,0.0075]
[1736276953935,2.97200291,3430.3,3429.6,0.0075]
[1736276954136,0.05680291,3430.3,3429.6,0.0075]
[1736276954452,2.91504,3430.5,3429.6,0.0075]
[1736276954738,0.05680291,3430.2,3429.6,0.0075]
[1736276954947,0.05680291,3430.4,3429.6,0.401445]
[1736276955128,2.91504,3430.5,3429.6,0.43059727]
[1736276955326,0.05680291,3430.4,3429.6,0.43059727]
[1736276955688,0.05680291,3430.4,3429.8,4.016]
[1736276955959,0.9598,3431.4,3430.1,0.0075]
[1736276956097,0.05680291,3430.3,3430.1,0.03664708]
[1736276956301,0.05680291,3430.3,3430.1,0.73346879]
[1736276956497,0.9598,3431.4,3430.1,3.64875879]
[1736276956751,2.91453,3431.1,3430.1,3.61961171]
[1736276957331,0.0548655,3431.0,3430.1,3.64875879]
[1736276957649,0.0548655,3431.0,3430.3,0.0075]
[1736276957850,0.0548655,3431.0,3430.3,0.03664708]
[1736276958216,0.0548655,3431.0,3430.4,0.9242]
[1736276958552,1.1578028,3431.8,3430.9,0.0075]
[1736276958971,2.91407,3431.7,3430.9,0.0075]
[1736276959469,2.9141,3431.6,3430.8,0.02914166]
[1736276959658,2.9141,3431.6,3430.9,0.0075]
[1736276959997,1.1578028,3431.8,3430.9,2.92215]
[1736276960228,1.1578028,3431.8,3431.1,0.0075]
[1736276961326,0.1689028,3431.8,3431.1,0.0075]
[1736276961530,0.1689028,3431.8,3431.1,2.92199]
[1736276961840,0.1689028,3431.8,3431.3,0.0075]
[1736276962543,0.1689028,3431.8,3430.8,0.68683317]
[1736276962706,2.9141,3431.6,3430.8,0.68683317]
[1736276962902,2.91435,3431.3,3430.0,2.91538]
[1736276963101,2.91435,3431.3,3430.2,2.91525]
[1736276963339,2.91435,3431.3,3430.7,0.0075]
[1736276963720,3.9168,3431.7,3430.7,0.0075]
[1736276963920,2.9142,3431.5,3430.7,0.03664458]
[1736276964834,1.0028,3431.7,3430.7,0.0075]
[1736276964835,2.91435,3431.3,3430.7,0.0075]
[1736276965526,2.91435,3431.3,3430.4,0.0075]
[1736276965725,0.9322,3431.6,3430.2,0.9557]
[1736276965959,1.1652,3431.6,3430.2,2.70778717]
[1736276966114,2.91467,3431.0,3430.3,0.0075]
[1736276966313,2.91467,3431.0,3430.2,0.9557]
[1736276966314,0.9322,3430.9,3430.2,0.9557]
[1736276966545,2.91485,3430.7,3430.2,0.9557]
[1736276966709,2.91485,3430.7,3430.3,0.0075]
[1736276967035,2.91485,3430.7,3429.7,2.9157]
[1736276967036,0.05381881,3430.6,3429.8,0.9848504]
[1736276967448,0.05381881,3430.6,3429.8,1.71430894]
[1736276967749,0.9322,3430.9,3429.8,1.71430894]
[1736276967906,2.91497,3430.6,3429.8,1.71430894]
[1736276968113,2.91497,3430.6,3429.9,0.0075]
[1736276968651,0.9322,3430.9,3429.9,0.0075]
[1736276968852,0.05381881,3430.5,3429.9,0.0075]
[1736276969048,2.91487,3430.7,3429.9,0.51052816]
[1736276969209,0.9322,3430.9,3429.9,3.42598816]
[1736276969210,0.05139457,3430.4,3429.9,3.42598816]
[1736276969548,0.9322,3430.9,3430.1,0.0075]
[1736276969949,0.05139457,3430.8,3429.9,0.0075]
[1736276970158,2.91514,3430.4,3429.9,0.0075]
[1736276970538,0.05139457,3430.7,3429.4,0.9647]
[1736276970788,2.91548,3430.0,3429.4,0.9647]
[1736276970941,2.91557,3429.9,3429.2,1.21209956]
[1736276971539,2.91557,3429.9,3429.3,0.0075]
[1736276971740,0.05132622,3429.8,3429.1,0.9647]
[1736276971930,2.91557,3429.9,3429.2,0.02915779]
[1736276972515,2.91557,3429.9,3429.3,0.0075]
[1736276972727,0.05132622,3429.8,3429.3,0.0075]
[1736276973055,2.91546,3430.0,3429.3,0.0075]
[1736276973357,1.0058,3430.2,3429.2,0.0075]
[1736276973658,2.91573,3429.7,3429.2,0.0075]
[1736276974261,1.0058,3430.2,3429.2,0.0075]
[1736276974421,0.05095021,3429.6,3429.2,0.0075]
[1736276974622,2.91555,3429.9,3429.2,0.0075]
[1736276974848,0.05095021,3429.5,3429.2,0.0075]
[1736276975051,2.91571,3429.7,3429.2,0.0075]
[1736276975258,2.91557,3429.9,3429.2,0.0075]
[1736276975422,2.91563,3429.8,3429.2,0.0075]
[1736276975622,2.96658021,3429.8,3429.2,0.0075]
[1736276976628,2.96306954,3429.8,3429.2,0.0075]
[1736276976962,0.05095021,3429.8,3429.2,0.0075]
[1736276977129,2.91572,3429.7,3429.2,0.0075]
[1736276977533,2.91572,3429.7,3428.9,0.0075]
[1736276977757,3.92113,3430.2,3428.9,0.0075]
[1736276978063,2.91554,3429.9,3428.9,0.43874909]
[1736276978442,2.91554,3429.9,3428.9,0.40959]
[1736276978760,0.05095021,3429.8,3428.9,0.40959]
[1736276979572,2.78830843,3429.9,3428.9,0.0075]
[1736276979865,0.05095021,3429.7,3429.0,0.9686]
[1736276980065,4.12197718,3430.5,3429.5,0.9686]
[1736276980249,1.20691718,3430.5,3429.6,0.0075]
[1736276980451,0.05009557,3430.4,3429.6,0.0075]
[1736276980656,1.20691718,3430.6,3429.6,35.0075]
[1736276980964,1.20691718,3430.6,3429.6,5.7844594]
[1736276981176,2.91512,3430.4,3429.6,0.0075]
[1736276981667,2.91523,3430.3,3429.6,0.0075]
[1736276981863,2.96532557,3430.3,3429.6,0.0075]
[1736276982079,0.05009557,3430.3,3429.6,0.0075]
[1736276982284,2.91538,3430.1,3429.6,0.0075]
[1736276982775,0.05032806,3430.0,3429.6,0.0075]
[1736276983368,0.05032806,3430.0,3429.2,1.0225]
[1736276983567,2.91572,3429.7,3428.6,2.91657]
[1736276983753,3.14842,3430.1,3428.8,0.0075]
[1736276983954,2.91564,3429.8,3428.8,2.92392]
[1736276984473,0.05021182,3429.7,3428.8,2.92392]
[1736276984844,0.05021182,3429.7,3429.0,0.0075]
[1736276987585,0.05021182,3429.7,3429.2,0.0075]
[1736276987976,1.1583,3430.4,3429.2,0.0075]
[1736276988164,0.0500477,3429.6,3429.2,0.02915909]
[1736276988348,1.20691718,3430.5,3429.7,2.91562]
[1736276988547,0.0500477,3430.4,3429.8,0.0075]
[1736276988746,1.20691718,3430.5,3429.8,0.0075]
[1736276988952,0.0500477,3430.4,3429.8,0.0075]
[1736276989700,0.0500477,3430.4,3430.3,3.90789]
[1736276989863,0.0500477,3430.4,3430.3,7.590968]
[1736276990060,1.20691718,3431.1,3430.4,3.9852]
[1736276990270,1.20691718,3431.1,3430.7,0.0075]
[1736276990563,0.05086138,3431.0,3430.7,2.92228]
[1736276991184,2.91409,3431.6,3430.9,0.0075]
[1736276991387,3.0828528,3431.8,3430.9,0.0075]
[1736276992076,3.0828528,3431.8,3430.8,0.0075]
[1736276992801,3.88404,3431.7,3430.8,0.0075]
[1736276993002,3.88404,3431.7,3430.8,0.32887224]
[1736276993208,3.88404,3431.7,3430.8,0.299728]
[1736276993500,3.88404,3431.7,3430.8,0.32887224]
[1736276993863,3.88404,3431.7,3430.8,3.24363224]
[1736276994178,3.88404,3431.7,3431.0,0.0075]
[1736276996900,0.97,3431.7,3431.0,0.0075]
[1736276997708,0.1689028,3431.8,3431.0,0.42790564]
[1736276998008,0.1689028,3431.8,3431.0,0.03664422]
[1736276998505,0.1689028,3431.8,3431.2,0.0075]
[1736276998705,0.1689028,3431.8,3431.2,0.03663938]
[1736276998910,0.05179076,3431.7,3431.4,0.0075]
[1736276999110,0.05179076,3431.7,3431.6,2.92159]
[1736276999280,0.1689028,3431.8,3431.7,0.0075]
[1736276999664,0.1689028,3431.8,3431.7,2.9215]
[1736277000211,0.1689028,3431.8,3431.7,0.0075]
[1736277000505,0.1689028,3431.8,3431.3,0.9237]
[1736277000706,0.1689028,3431.8,3431.3,3.83802]
[1736277001013,0.05331437,3431.7,3431.5,0.0075]
[1736277001180,0.05331437,3431.7,3431.6,2.92159]
[1736277001508,0.1689028,3431.8,3431.7,1.0133]
[1736277001805,0.1689028,3431.8,3431.7,3.9273]
[1736277003205,0.1689028,3431.8,3431.7,1.0133]
[1736277003406,0.1689028,3431.8,3431.7,1.406045]
[1736277003969,0.1689028,3431.8,3300.0,2.77646918]
[1736277003970,0.1689028,3431.8,3431.4,1.0058]
[1736277004413,0.05334168,3431.7,3431.4,1.0058]
[1736277004570,0.05334168,3431.7,3431.1,1.0058]
[1736277004776,0.05334168,3431.7,3430.5,1.21209956]
[1736277004973,2.78388122,3431.3,3430.0,2.21789956]
[1736277005212,2.78388122,3431.0,3430.0,2.21789956]
[1736277005382,2.78388122,3430.7,3430.0,2.21789956]
[1736277005718,9.71884122,3430.1,3430.0,1.21209956]
[1736277006041,10.00294617,3430.1,3430.0,9.56e-06]
[1736277006374,1.0044,3429.8,3428.6,8.91e-06]
[1736277006571,5.70008122,3429.2,3428.6,0.34300971]
[1736277006825,2.91553,3429.9,3428.7,0.98296562]
[1736277007113,0.0520776,3429.1,3428.9,2.91636]
[1736277007313,5.91521,3430.3,3429.0,2.94545941]
[1736277007610,0.04978781,3430.2,3429.2,2.92355]
[1736277007781,0.04978781,3430.2,3429.6,0.0075]
[1736277008109,1.0044,3430.7,3429.8,0.0075]
[1736277008282,0.05006136,3430.1,3429.8,0.0075]
[1736277008490,2.91504,3430.5,3429.8,0.0075]
[1736277009028,0.0575682,3430.4,3429.8,0.0075]
[1736277011976,0.0575682,3430.4,3430.0,0.0075]
[1736277012193,1.21156198,3431.0,3430.4,0.0075]
[1736277012525,1.21156198,3431.0,3430.4,2.95169723]
[1736277012728,0.0075,3430.9,3430.4,2.95169723]
[1736277013823,0.0075,3430.7,3430.4,2.92255]
[1736277014383,0.0075,3430.5,3430.4,2.92255]
[1736277015025,0.0075,3431.2,3430.4,2.92255]
[1736277015326,0.0075,3431.2,3430.6,0.0075]
[1736277015521,0.0075,3431.0,3430.6,0.0075]
[1736277015733,0.0075,3431.0,3430.5,0.0075]
[1736277016023,0.0075,3431.2,3430.5,0.03664724]
[1736277016182,0.0075,3430.8,3430.5,0.03664724]
[1736277016387,0.0075,3430.8,3430.5,0.0075]
[1736277016588,0.0075,3430.6,3430.2,2.91527]
[1736277016790,0.0075,3430.6,3430.2,0.02914729]
[1736277017087,0.05144924,3430.5,3430.3,0.0075]
[1736277017285,0.05144924,3430.5,3430.3,2.92266]
[1736277017528,2.91436,3431.3,3430.3,2.92266]
[1736277017824,0.0075,3431.1,3430.3,0.0075]
[1736277018013,0.0075,3431.1,3431.0,0.0075]
[1736277018210,0.0075,3431.1,3431.0,1.05144232]
[1736277018624,1.81734298,3431.7,3431.0,1.05144232]
[1736277018625,0.0075,3431.4,3431.0,1.05144232]
[1736277019007,0.05149708,3431.3,3431.0,1.05144232]
[1736277019208,0.0075,3431.2,3431.0,1.05144232]
[1736277019546,0.0075,3431.2,3431.0,1.0223]
[1736277019704,0.0075,3431.2,3431.0,1.05144229]
[1736277020034,0.0075,3431.6,3431.0,1.05144229]
[1736277020330,0.0075,3431.7,3431.0,1.05144229]
[1736277020629,0.0075,3431.7,3431.0,3.96603229]
[1736277020895,0.0075,3431.5,3431.0,3.96603229]
[1736277021016,0.0075,3431.5,3431.0,4.36263552]
[1736277021211,1.44356198,3432.3,3431.2,0.0075]
[1736277021212,1.21156198,3432.3,3431.2,0.0075]
[1736277021432,1.21156198,3432.3,3431.7,0.0075]
[1736277021739,1.21156198,3432.3,3431.7,1.007]
[1736277022107,0.1764028,3431.8,3431.7,1.007]
[1736277022399,0.1764028,3431.8,3431.7,4.313107]
[1736277023109,0.1764028,3431.8,3431.7,7.313107]
[1736277024250,0.1764028,3431.8,3431.7,1.391607]
[1736277024453,0.1764028,3431.8,3431.7,0.9995]
[1736277024808,0.0075,3431.7,3431.6,0.0075]
[1736277025801,0.0075,3431.7,3431.5,2.91415]
[1736277025802,0.0075,3431.7,3431.0,0.9526]
[1736277026228,0.0075,3431.7,3431.2,0.0075]
[1736277027748,0.1689028,3431.8,3431.4,2.91423]
[1736277028118,0.1689028,3431.8,3431.5,0.0075]
[1736277028419,0.1689028,3431.8,3431.7,0.0075]
[1736277028644,0.1689028,3431.8,3431.7,2.9215]
[1736277029160,0.1764028,3431.8,3431.7,2.9215]
[1736277030160,0.1764028,3431.8,3431.7,3.30668]
[1736277031205,0.1764028,3431.8,3431.7,3.33581484]
[1736277031410,0.1689028,3431.8,3431.6,0.9303]
[1736277031809,0.05296605,3431.7,3431.6,0.9378]
[1736277032109,0.05296605,3431.7,3431.6,3.8810269]
[1736277032309,0.1764028,3431.8,3431.7,2.914]
[1736277033170,0.1764028,3431.8,3431.7,3.30134369]
[1736277034670,0.1764028,3431.8,3431.7,6.30884369]
[1736277034853,1.21156198,3432.9,3431.9,0.821]
[1736277035027,1.21156198,3433.0,3432.9,0.0075]
[1736277035220,1.21156198,3433.0,3432.9,2.92048]
[1736277035732,1.21156198,3433.0,3432.8,0.8351265]
[1736277036040,1.21906198,3433.0,3432.9,2.91298]
[1736277036438,0.0075,3433.0,3432.9,2.91298]
[1736277037115,2.01036198,3433.9,3432.9,2.91298]
[1736277037323,2.01036198,3433.9,3433.1,0.0075]